Cogmind - Beta 11.1 @@@ ROGUE MODE // 2022.07.24 @ 20:57:21 Player: Kel Result: Self-destructed Performance ------------- Evolutions (1) 500 Regions Visited (3) 600 Robots Destroyed (12) 60 Value Destroyed (245) 245 Prototype IDs (0) 0 Alien Tech Used (0) 0 Bonus (-345) -345 TOTAL SCORE: 1060 Bonus ------- Follower Combat Kills 46 Friendly Fire -391 Cogmind --------- Core Integrity 342/400 Matter 300/300 Energy 250/250 System Corruption 0% Temperature Cool (0) Movement Treading (240) Ox1 Location -9/Materials Parts ------- > --- POWER (1) -------- Ion Engine > --- PROPULSION (2) --- Improved Treads Improved Treads > --- UTILITY (3) ------ Huge Storage Unit Structural Scanner Power Shielding > --- WEAPON (3) ------- Small Laser > --- INVENTORY (25) --- Wheel Compact Wheel Compact Wheel Compact Wheel Heat Sink Weight Redist. System Light Armor Plating Shield Generator Shield Generator Improved EM Shotgun Peak State ------------ > --- POWER ------------ Ion Engine > --- PROPULSION ------- Improved Treads Improved Treads > --- UTILITY ---------- Huge Storage Unit Structural Scanner Power Shielding > --- WEAPON ----------- Small Laser Light EM Pulse Cannon Grenade Launcher > --- INVENTORY -------- Wheel Compact Wheel Compact Wheel Compact Wheel Heat Sink Weight Redist. System Shield Generator Shield Generator Improved EM Shotgun [Rating: 13] Favorites ----------- Power Light Ion Engine Engine Light Ion Engine Propulsion Improved Treads Treads Improved Treads Wheel Compact Wheel Utility Structural Scanner Device Structural Scanner Storage Huge Storage Unit Protection Power Shielding Weapon Small Laser Energy Gun Small Laser Energy Cannon Light EM Pulse Cannon Ballistic Gun Light Assault Rifle Launcher Grenade Launcher Build | -11 -10 -10 -9 ------- Run | Scr Mat Min Mat Slots Evolved 2 | . . . 2 Power . | . . . . Propulsion . | . . . . Utility 1 | . . . 1 Weapon 1 | . . . 1 Parts Attached 16 | 6 4 . 6 Power 2 | 1 . . 1 Engine 2 | 1 . . 1 Core . | . . . . Reactor . | . . . . Propulsion 4 | 2 . . 2 Treads 2 | . . . 2 Leg . | . . . . Wheel 2 | 2 . . . Hover . | . . . . Flight . | . . . . Utility 6 | 1 3 . 2 Device 1 | . 1 . . Storage 4 | 1 2 . 1 Processor . | . . . . Hackware . | . . . . Protection 1 | . . . 1 Artifact . | . . . . Weapon 4 | 2 1 . 1 Energy Gun 1 | 1 . . . Energy Cannon 1 | . 1 . . Ballistic Gun 1 | 1 . . . Ballistic Cannon . | . . . . Launcher 1 | . . . 1 Special Weapon . | . . . . Impact Weapon . | . . . . Slashing Weapon . | . . . . Piercing Weapon . | . . . . Special Melee Weapon . | . . . . Unidentified Prototypes . | . . . . Parts Lost 2 | . . . 2 Power . | . . . . Propulsion . | . . . . Utility . | . . . . Weapon 2 | . . . 2 Highest Loss Streak 2 | . . . 2 To Critical Strikes . | . . . . Average Slot Usage (%) 99 | . 98 100 99 Engine 12 | . 14 14 11 Treads 7 | . . . 14 Wheel 16 | . 28 28 7 Device 11 | . 10 14 11 Storage 13 | . 16 14 11 Protection 6 | . . . 11 Energy Gun 12 | . 14 14 11 Energy Cannon 10 | . 9 14 11 Ballistic Gun 1 | . 4 . . Launcher 5 | . . . 10 Naked Turns . | . . . . Heaviest Build 95 | 10 29 29 95 Greatest Support 46 | 26 26 26 46 Greatest Overweight (x) 3 | . 1 1 3 Average Overweight (x) 1 | . . 1 1 Largest Inventory Capacity 25 | 8 15 15 25 Average Capacity 18 | 6 12 15 23 Most Carried 14 | 1 10 10 14 Average Carried 8 | . 6 10 9 Final Capacity 25 | 8 15 15 25 Final Carried 10 | 1 10 10 10 Class Distribution -------------------- 52% | Mutant 47% | Tank Dominant Class ---------------- Mutant | -10/Materials Mutant | -10/Mines Tank | -9/Materials Resources | -11 -10 -10 -9 ----------- Run | Scr Mat Min Mat Matter Collected 437 | 260 62 . 115 Remotely . | . . . . Salvage Created 341 | . 46 . 295 Parts 14 | . 6 . 8 Haulers Intercepted . | . . . . Recyclers Shooed . | . . . . Parts Field Recycled . | . . . . Retrieved Matter . | . . . . Parts Self-Destructed . | . . . . Prevented . | . . . . Kills | -11 -10 -10 -9 ------- Run | Scr Mat Min Mat Combat Hostiles Destroyed 8 | . 3 . 5 Guns 3 | . 3 . . Cannons 3 | . . . 3 AOE 2 | . . . 2 Classes Destroyed 5 | . 1 . 4 Worker 1 | . . . 1 Swarmer 3 | . 3 . . Grunt 6 | . . . 6 Duelist 1 | . . . 1 Sentry 1 | . . . 1 Best Kill Streak 3 | . 2 . 3 Combat Bots Only 3 | . 2 . 3 Max Kills in Single Turn 4 | . 1 . 4 Gunslinging . | . . . . Exploded 1 | . . . 1 Melee . | . . . . Uniques/NPCs Destroyed . | . . . . Combat | -11 -10 -10 -9 -------- Run | Scr Mat Min Mat Damage Taken 406 | . 78 . 328 Core 77 | . 19 . 58 Absorbed by Shields . | . . . . Redirected to Shielding 14 | . . . 14 Core Remaining (%) 96 | 100 . 92 . Volleys Fired 17 | . 6 1 10 Largest 3 | . 2 2 3 Hottest 126 | . 96 96 126 Shots Fired 40 | . 12 2 26 Gun 20 | . 9 1 10 Cannon 14 | . 3 1 10 Launcher 6 | . . . 6 Special . | . . . . Kinetic 3 | . 3 . . Thermal 17 | . 6 1 10 Explosive 6 | . . . 6 Electromagnetic 14 | . 3 1 10 Robot Hit Streak 12 | . 3 . 12 Robot Miss Streak 3 | . 3 2 3 Penetration Max . | . . . . Secondary Targets . | . . . . Shots Hit Robots 23 | . 6 . 17 Core Hits 17 | . 3 . 14 Critical Kills . | . . . . Critical Parts Destroyed . | . . . . Critical Strikes . | . . . . Melee Attacks . | . . . . Impact . | . . . . Slashing . | . . . . Piercing . | . . . . Sneak Attacks . | . . . . Combat Hostiles . | . . . . Follow-up Attacks . | . . . . Damage Inflicted 584 | . 69 . 515 Guns 115 | . 49 . 66 Cannons 182 | . 20 . 162 Explosions 287 | . . . 287 Melee . | . . . . Ramming . | . . . . Kinetic 9 | . 9 . . Thermal 106 | . 40 . 66 Explosive 287 | . . . 287 Electromagnetic 182 | . 20 . 162 Impact . | . . . . Slashing . | . . . . Piercing . | . . . . Highest Corruption . | . . . . Average Corruption . | . . . . Corruption Purged . | . . . . Corruption Blocked . | . . . . Overload Shots . | . . . . Overflow Damage . | . . . . Projectiles . | . . . . Explosions . | . . . . Melee . | . . . . Knockbacks . | . . . . Impact . | . . . . Kinetic . | . . . . Secondary . | . . . . Self-Inflicted Damage 47 | . . . 47 Shots 3 | . . . 3 Rammed . | . . . . Targets Rammed . | . . . . Kicked . | . . . . Crushed . | . . . . Highest Temperature 259 | . 108 36 259 Average Temperature 91 | . 45 22 117 Received Heat Transfer 63 | . . . 63 Siege Activations . | . . . . Robots Corrupted . | . . . . Combat Hostiles . | . . . . Parts Fried . | . . . . Impact Corruptions . | . . . . Robots Melted . | . . . . Combat Hostiles . | . . . . Parts Melted 2 | . . . 2 Heat Transferred 250 | . 100 . 150 Parts Sabotaged . | . . . . Parts Stolen . | . . . . Parts Stripped . | . . . . Power Chain Reactions . | . . . . Missiles Intercepted . | . . . . Alert | -11 -10 -10 -9 ------- Run | Scr Mat Min Mat Peak Influence 218 | . 115 125 218 Initial 48 | . . 44 48 Average 99 | . 68 56 136 Maximum Alert Level 1 | . . . 1 Low Security (%) 75 | 100 100 100 53 Level 1 24 | . . . 46 Level 2 . | . . . . Level 3 . | . . . . Level 4 . | . . . . Level 5 . | . . . . High Security . | . . . . Max Security . | . . . . Squads Dispatched 1 | . 1 . . Investigation 1 | . 1 . . Extermination . | . . . . Reinforcement . | . . . . Assault . | . . . . Garrison . | . . . . Intercept . | . . . . Searches Triggered . | . . . . Construction Impeded . | . . . . Haulers Reinforced . | . . . . Active Scanning Responses . | . . . . Cargo Convoy Interrupts . | . . . . Stealth | -11 -10 -10 -9 --------- Run | Scr Mat Min Mat Distress Signals 1 | . 1 . . Communications Jammed . | . . . . Distress Signals . | . . . . Times Spotted 17 | . 6 3 8 Peak Tracking Total 4 | . 4 3 3 Tactical Retreats 1 | . 1 . . Traps | -11 -10 -10 -9 ------- Run | Scr Mat Min Mat Traps Triggered 1 | . 1 . . Indirectly . | . . . . Trap Hack Attempts . | . . . . Triggered . | . . . . Disarmed . | . . . . Reprogrammed . | . . . . Reused . | . . . . Traps Extracted . | . . . . Installed . | . . . . Triggered . | . . . . Machines | -11 -10 -10 -9 ---------- Run | Scr Mat Min Mat Machines Disabled 2 | . . . 2 Max in Single Turn 1 | . . . 1 Machines Sabotaged . | . . . . Garrisons Compromised . | . . . . Overloaded Fab Kills . | . . . . Hacking | -11 -10 -10 -9 --------- Run | Scr Mat Min Mat Machines Accessed 2 | . 2 . . Terminals 2 | . 2 . . Fabricators . | . . . . Repair Stations . | . . . . Recycling Units . | . . . . Scanalyzers . | . . . . Garrison Access . | . . . . Total Hacks 2 | . 2 . . Successful 1 | . 1 . . Failed 1 | . 1 . . Catastrophic . | . . . . Database Lockouts . | . . . . Manual . | . . . . Terminals 2 | . 2 . . Fabricators . | . . . . Repair Stations . | . . . . Recycling Units . | . . . . Scanalyzers . | . . . . Garrison Access . | . . . . Terminal Hacks 1 | . 1 . . Record 1 | . 1 . . Fabricator Hacks . | . . . . Repair Station Hacks . | . . . . Recycling Unit Hacks . | . . . . Scanalyzer . | . . . . Garrison Access Hacks . | . . . . Unauthorized Hacks . | . . . . Terminals . | . . . . Fabricators . | . . . . Repair Stations . | . . . . Recycling Units . | . . . . Scanalyzers . | . . . . Garrison Access . | . . . . Data Cores Recovered . | . . . . Used . | . . . . Hacking Detections . | . . . . Full Trace Events . | . . . . Feedback Events . | . . . . Feedback Blocked . | . . . . Robot Schematics Acquired . | . . . . Robots Built . | . . . . Authchips . | . . . . Time . | . . . . Total Robot Build Rating . | . . . . Part Schematics Acquired . | . . . . Parts Built . | . . . . Authchips . | . . . . Time . | . . . . Total Part Build Rating . | . . . . Parts Repaired . | . . . . Time . | . . . . Parts Recycled . | . . . . Recycled Matter . | . . . . Retrieved Matter . | . . . . Retrieved Components . | . . . . Parts Scanalyzed . | . . . . Part Schematics Acquired . | . . . . Parts Damaged . | . . . . Bothacking | -11 -10 -10 -9 ------------ Run | Scr Mat Min Mat Used RIF Installer . | . . . . Robots Hacked . | . . . . Non-combat . | . . . . Combat . | . . . . Robot Hacks Applied . | . . . . Relay Couplers Released . | . . . . Fabnet Peak Effective % . | . . . . Robots Rewired . | . . . . Allies Hacked . | . . . . Hacks Repelled . | . . . . Allies | -11 -10 -10 -9 -------- Run | Scr Mat Min Mat Total Allies 3 | . . 3 . Largest Group 3 | . . 3 3 Highest-Rated Group 40 | . . 40 40 Highest-Rated Ally 16 | . . 16 16 Total Orders . | . . . . Ally Attacks 19 | . . 10 9 Total Damage 197 | . . 114 83 Kills 4 | . . 3 1 Allies Corrupted . | . . . . Allies Melted . | . . . . Intel | -11 -10 -10 -9 ------- Run | Scr Mat Min Mat Robot Analysis Total . | . . . . Derelict Logs Recovered 1 | . . 1 . Drone Launches . | . . . . Drone Recoveries . | . . . . Exploration | -11 -10 -10 -9 ------------- Run | Scr Mat Min Mat Turns Passed 1142 | 59 382 104 597 Spaces Moved 745 | 55 344 79 267 Core 1 | 1 . . . Treads 118 | . . . 118 Legs . | . . . . Wheels 626 | 54 344 79 149 Hover . | . . . . Flight . | . . . . Fastest Speed 50 | 50 90 105 105 Average Speed 137 | 89 99 105 205 Slowest Speed 320 | 100 105 105 320 Overloaded Moves . | . . . . Propulsion Burnouts . | . . . . Robots Hopped . | . . . . Cave-ins Triggered . | . . . . Exploration Rate (%) 28 | 4 67 19 22 Regions Visited 3 Branch Regions 1 Pre-discovered Areas 1 | . . 1 . Known Exits Taken . | . . . . Unknown Exits Taken 3 | 1 1 1 . Scrap Searched . | . . . . Spaces Dug . | . . . . Terrain Destroyed 39 | . . . 39 Melee . | . . . . Projectile . | . . . . AOE 39 | . . . 39 Terrain Rammed . | . . . . Walls Destroyed . | . . . . Machines Disabled . | . . . . Actions | -11 -10 -10 -9 --------- Run | Scr Mat Min Mat Total 824 | 61 371 98 294 Wait 25 | . 6 19 . Move 742 | 54 343 78 267 Hop . | . . . . Pick Up 17 | 1 10 . 6 Fast Attach 7 | 6 1 . . Attach 2 | . . . 2 Detach . | . . . . Swap 7 | . 3 . 4 Drop 7 | . 2 . 5 Fire 17 | . 6 1 10 Melee . | . . . . Ram . | . . . . Kick . | . . . . Crush . | . . . . Escape Stasis . | . . . . Rewire . | . . . . Trap . | . . . . Miscellaneous . | . . . . Route ------- -11/Scrapyard -10/Materials (discovered 3 exits: [*Mat] / [*Min x2]) -10/Mines -9/Materials History --------- Turn | Location | Event 4 | -11/Scrapyard | Discovered new exit (range 16) 60 | -11/Scrapyard | Entered Materials 202 | -10/Materials | Discovered new exit (range 16) 314 | -10/Materials | Build established: Mutant 317 | -10/Materials | Discovered new exit (range 3) 422 | -10/Materials | Discovered new exit (range 11) 442 | -10/Materials | Entered Mines 447 | -10/Mines | Assisted by bots powering up and referring to "LRC-V3" 460 | -10/Mines | Met a Derelict bent on vengeance 537 | -10/Mines | Discovered new exit (range 7) 546 | -10/Mines | Entered Materials 546 | -9/Materials | Accompanied by 3 allies 546 | -9/Materials | Evolved 2 slots: Utility x1, Weapon x1 906 | -9/Materials | Build established: Tank 1143 | -9/Materials | Self-destructed Last Messages --------------- 00665_ Critical hit (Burn: +37). 00667_ Heat Sink melted. 00667_ Imp. Ion Engine melted. 00667_ Y-45 Defender destroyed. 00667_ Trooper 1a destroyed. 00667_ Mercenary 1a destroyed. 00675_ Acquired 6 matter. 00677_ Acquired 34 matter. 00679_ U-05 Engineer lays Concrete. 00681_ U-05 Engineer builds a Wall. 00684_ The unstable cave ceiling collapses. 00867_ K-01 Serf collects debris. 00926_ Acquired Lgt. Armor Plating. 01103_ Material Processor disabled. 01103_ G-34 Mercenary destroyed. 01111_ Grenade Launcher destroyed. 01116_ L-31 Rogue destroyed. 01119_ Acquired 42 matter. 01126_ Acquired 3 matter. 01141_ Lgt. EM Pulse Cannon destroyed. Map ----- +----------------------------------------------------+ | ??????????????????????????????????? | | ??????????????????????????????????? | | ??????????????????????????????????? | | ???????########### ???????????????? | | ???????############???????????????? | | ???????## ##???????????????? | | ???????## """ # ???????????????? | | ???????## """ # ???????????????? | | ???????## """ # ???????????????? | | ???????## # ???????????????? | | ???????## """ # ?????? s???????? | | ## ## """ # ?????? ???????? | | ######### """ # ?????? + ?????? | | #### # ?????? # ?????? | | ########+#### ???? # ##?????? | | ###### ### ???? # # ?????? | | + ##?????? # # ?????? | | # T ##?????? #s # ?"???? | | ! ## ### ### # # ""???? | | #######+#### ###########k # ??? | | [# # ## # # """" # | | ## """ """ # ## """ # + """" # | | ## """ """ # ## """"" # # """" # | | + """ """ # ## " "" # # # | | # + ## " = """" ? | | # # # *%[ @ """" # | | / ! # # """" # | | ## # # % # | | ############ # ####### | | ## # ###### ####### | | ## ### ######## | | ## ### + # | | ## """ T ### # " # | | ## [[ """ ### # """ # | | ## [= """ ### # "" # | | ## # """ # | | + "" # | | ##########+######### # """ # | | ###+##### ### # """ # | | ####""" """ """ ### # """ # | | """ ####"R """ """ ###### " # | | """ ####""" """ """ ###### # | | """ #### ##??## # | | =% #### ##??## # | | ########################??######### | | | | | | | | | | | +----------------------------------------------------+ Best States ------------- Heat Dissipation 28 Energy Generation 10 Energy Capacity 250 Matter Stores 304 Matter Capacity 350 Sight Range 16 Terrain Scan Density 10 Power Shielding 33 Evasion (%) 42 Recoil Reduction 2 Item Schematics ----------------- None Robot Schematics ------------------ None Fabricated ------------ Nothing Alien Tech Used ----------------- None Achievements -------------- None Challenges ------------ None Game ------ Seed ChargeAblativeReconfigurator Manual? 0 Play Time 00:11:47 Cumulative 8.4 hours Start 2022.07.24 @ 20:36:04 End 2022.07.24 @ 20:57:21 Sessions 1 Manual Loads 0 Difficulty Rogue Special Mode None Game No. 12 Rogue 12 Adventurer 0 Explorer 0 Win Type - Total 0 Types 0/0/0/0/0/0/0/0/0 Lore% 15 Gallery% 15 Achievement% 13 Wizard Run 0 Options --------- ASCII 0 Keyboard 1 Movement Numpad Keybinds 0 Fullscreen 1 Font 18/Terminus Map View 76x50 Tactical HUD 1 Map Filters NONE Filters NONE Steam 1 RUN: cd4374ae-e535-48ca-85b7-6acb390b6c77